fUSD/lending_fUSD_20241002
["ID","MTS","AMOUNT","RATE_DAILY","PERIOD"]
[339683012,1727862955947,-1000.0,0.00035,30]
[339683013,1727862955974,-831.76694733,0.00035,120]
[339683014,1727862956000,-999.0,0.00035068,120]
[339683015,1727862956026,-2000.0,0.00035116,120]
[339683016,1727862956051,-150.0,0.00035128,120]
[339683017,1727862956074,-1132.56,0.00035315,120]
[339683018,1727862956102,-150.0,0.00035345,120]
[339683019,1727862956125,-204.0,0.0003551,30]
[339683020,1727862956153,-2000.0,0.00035542,120]
[339683021,1727862956179,-500.0,0.00035546,120]
[339683022,1727862956202,-500.0,0.00035691,120]
[339683023,1727862956226,-215.0,0.000357,30]
[339683024,1727862956249,-202.0,0.000357,30]
[339683025,1727862956274,-1132.56,0.00035726,120]
[339683026,1727862956299,-150.0,0.00035912,120]
[339683027,1727862956324,-2000.0,0.00035969,120]
[339683028,1727862956347,-2693.29972229,0.00035988,120]
[339683029,1727862956370,-900.0,0.00036,120]
[339683030,1727862956396,-3000.0,0.00036,120]
[339683031,1727862956419,-1000.0,0.00036,30]
[339683032,1727862956443,-150.0,0.00036062,120]
[339683033,1727862956466,-150.0,0.00036085,120]
[339683034,1727862956490,-1132.56,0.00036136,120]
[339683035,1727862956514,-999.0,0.00036164,120]
[339683036,1727862956539,-150.0,0.0003621,120]
[339683037,1727862956562,-2000.0,0.00036395,120]
[339683038,1727862956586,-1132.56,0.00036547,120]
[339683039,1727862956609,-204.0,0.0003658,30]
[339683040,1727862956632,-501.225391,0.0003664,120]
[339683041,1727862956658,-500.0,0.00036655,120]
[339683042,1727862956682,-215.0,0.0003672,30]
[339683043,1727862956705,-202.0,0.0003672,30]
[339683044,1727862956729,-2000.0,0.000368,60]
[339683045,1727862956753,-1367.543059,0.00036821,120]
[339683046,1727862956776,-150.0,0.0003685,120]
[339683047,1727862956800,-1132.56,0.00036958,120]
[339683048,1727862956824,-3000.0,0.00036986,40]
[339683049,1727862956854,-3000.0,0.00036986,40]
[339683050,1727862956878,-3000.0,0.00036986,40]
[339683051,1727862956903,-3000.0,0.00036986,40]
[339683052,1727862956927,-3000.0,0.00036986,40]
[339683053,1727862956950,-3000.0,0.00036986,40]
[339683054,1727862956974,-1666.55730937,0.00036986,40]
[339683055,1727862956999,-12321.4602999,0.00037,90]
[339683056,1727862957022,-3000.0,0.00037,120]
[339683057,1727862957046,-1000000.0,0.00037,120]
[339683058,1727862957071,-150.0,0.00037012,120]
[339683059,1727862957094,-150.0,0.00037121,120]
[339683060,1727862957123,-150.0,0.00037141,120]
[339683061,1727862957151,-999.0,0.0003726,120]
[339683062,1727862957176,-4551.70395645,0.00037261,60]
[339683063,1727862957202,-151.100218,0.00037298,120]
[339683064,1727862957226,-1132.56,0.00037369,120]
[339683065,1727862957249,-151.100218,0.00037398,120]
[339683066,1727862957273,-151.100218,0.00037498,120]
[339683067,1727862957297,-1000000.0,0.000375,120]
[339683068,1727862957322,-151.100218,0.00037598,120]
[339683069,1727862957346,-204.0,0.0003765,30]
[339683070,1727862957370,-208.0,0.0003765,30]
[339683071,1727862957397,-207.0,0.0003765,30]
[339683072,1727862957422,-151.100218,0.00037698,120]
[339683073,1727862957445,-215.0,0.0003775,30]
[339683074,1727862957468,-202.0,0.0003775,30]
[339683075,1727862957491,-500.0,0.00037765,120]
[339683076,1727862957516,-1132.56,0.0003778,120]
[339683077,1727862957540,-151.100218,0.00037798,120]
[339683078,1727862957563,-150.0,0.00037888,120]
[339683079,1727862957587,-151.100218,0.00037898,120]
[339683080,1727862957610,-9134.4,0.00037898,117]
[339683081,1727862957634,-151.100218,0.00037998,120]
[339683082,1727862957661,-3000.0,0.00038,120]
[339683083,1727862957684,-3000.0,0.00038,120]
[339683084,1727862957708,-20025.83205127,0.00038,30]
[339683085,1727862957733,-500.0,0.00038,120]
[339683086,1727862957758,-1000000.0,0.00038,120]
[339683087,1727862957784,-1300.0,0.00038,30]
[339683088,1727862957809,-6554.82175241,0.00038,60]
[339683089,1727862957834,-3114.41216007,0.00038,120]
[339683090,1727862957859,-2438.00862387,0.00038,120]
[339683091,1727862957883,-1832.3787694,0.00038,39]
[339683092,1727862957911,-702157.18404788,0.00038,120]
[339683093,1727862963454,-297842.81595212,0.00038,120]
[339683094,1727862963479,-333.3,0.00038,120]
[339683095,1727862963503,-1019.25,0.00038,120]
[339683096,1727862963527,-151.100218,0.00038098,120]
[339683097,1727862963551,-2950.66338271,0.00038149,48]
[339683098,1727862963575,-1132.56,0.00038191,120]
[339683099,1727862963599,-151.100218,0.00038198,120]
[339683100,1727862963629,-151.100218,0.00038298,120]
[339683101,1727862963656,-500.0,0.00038356,120]
[339683102,1727862963681,-999.0,0.00038356,120]
[339683103,1727862963707,-151.100218,0.00038398,120]
[339683104,1727862963732,-1000.0,0.000384,120]
[339683105,1727862963759,-500.0,0.00038438,120]
[339683106,1727862963785,-151.100218,0.00038498,120]
[339683107,1727862963811,-1000000.0,0.000385,120]
[339683108,1727862963836,-1000000.0,0.000385,120]
[339683109,1727862963860,-30000.0,0.000385,120]
[339683110,1727862963886,-1000000.0,0.000385,120]
[339683111,1727862963920,-500.0,0.0003852,120]
[339683112,1727862963947,-150.0,0.00038585,120]
[339683113,1727862963973,-151.100218,0.00038598,120]
[339683114,1727862964000,-20000.0,0.000386,120]
[339683115,1727862964025,-500.0,0.00038602,120]
[339683116,1727862964049,-1132.56,0.00038602,120]
[339683117,1727862964073,-500.0,0.00038684,120]
[339683118,1727862964099,-151.100218,0.00038698,120]
[339683119,1727862964128,-20000.0,0.000387,120]
[339683120,1727862964163,-204.0,0.0003872,30]
[339683121,1727862964187,-208.0,0.0003872,30]
[339683122,1727862964212,-207.0,0.0003872,30]
[339683123,1727862964236,-10294.67928408,0.0003875,120]
[339683124,1727862964260,-4551.70395645,0.00038761,60]
[339683125,1727862964286,-500.0,0.00038767,120]
[339683126,1727862964309,-215.0,0.0003877,30]
[339683127,1727862964333,-202.0,0.0003877,30]
[339683128,1727862964357,-157.100218,0.00038798,120]
[339683129,1727862964381,-20000.0,0.000388,120]
[339683130,1727862964409,-500.0,0.00038849,120]
[339683131,1727862964433,-500.0,0.00038874,120]
[339683132,1727862964458,-157.100218,0.00038898,120]
[339683133,1727862964483,-379.75850332,0.000389,30]
[339683134,1727862964507,-10380.0,0.000389,120]
[339683135,1727862964531,-500.0,0.00038931,120]
[339683136,1727862964860,-157.100218,0.00038998,120]
[339683137,1727862964885,-1800.0,0.00039,40]
[339683138,1727862964910,-150.0,0.00039,30]
[339683139,1727862964935,-568818.70674132,0.00039,120]
[339683140,1727862970827,-431181.29325868,0.00039,120]
[339683141,1727862970851,-1000000.0,0.00039,120]
[339683142,1727862970875,-1000000.0,0.00039,120]
[339683143,1727862970898,-2503.2,0.00039001,30]
[339683144,1727862970922,-5000.0,0.00039006,30]
[339683145,1727862970947,-500.0,0.00039013,120]
[339683146,1727862970971,-1132.56,0.00039013,120]
[339683147,1727862970995,-2503.21,0.00039021,30]
[339683148,1727862971019,-500.0,0.00039095,120]
[339683149,1727862971043,-157.100218,0.00039098,120]
[339683150,1727862971067,-200.0,0.0003913,120]
[339683151,1727862971092,-500.0,0.00039178,120]
[339683152,1727862971123,-157.100218,0.00039198,120]
[339683153,1727862971150,-5000.0,0.000392,120]
[339683154,1727862971178,-500.0,0.0003926,120]
[339683155,1727862971202,-157.100218,0.00039298,120]
[339683156,1727862971226,-150.0,0.000393,120]
[339683157,1727862971248,-1564.48,0.00039301,30]
[339683158,1727862971273,-3999.99,0.00039303,30]
[339683159,1727862971297,-500.0,0.00039342,120]
[339683160,1727862971322,-157.100218,0.00039398,120]
[339683161,1727862971346,-5182.0,0.000394,120]
[339683162,1727862971370,-500.0,0.00039424,120]
[339683163,1727862971394,-1132.78123214,0.00039424,120]
[339683164,1727862971419,-5000.0,0.00039434,30]
[339683165,1727862971444,-999.0,0.00039452,120]
[339683166,1727862971468,-4989.69,0.00039494,30]
[339683167,1727862971492,-151.100218,0.00039498,120]
[339683168,1727862971516,-5000.0,0.000395,120]
[339683169,1727862971541,-1000000.0,0.000395,120]
[339683170,1727862971566,-520682.29441918,0.000395,120]
[339683171,1727862981622,-479317.70558082,0.000395,120]
[339683172,1727862981648,-1000000.0,0.000395,120]
[339683173,1727862981677,-500.0,0.00039506,120]
[339683174,1727862981706,-4990.69,0.00039528,30]
[339683175,1727862981729,-5000.0,0.0003954,30]
[339683176,1727862981754,-5000.0,0.00039554,30]
[339683177,1727862981777,-1994.58,0.00039572,30]
[339683178,1727862981801,-1258.41,0.00039582,30]
[339683179,1727862981827,-5000.0,0.00039589,60]
[339683180,1727862981853,-500.0,0.00039589,120]
[339683181,1727862981877,-150.0,0.00039591,120]
[339683182,1727862981901,-4938.57,0.00039596,30]
[339683183,1727862981930,-5000.0,0.00039616,30]
[339683184,1727862981957,-2502.27,0.00039618,30]
[339683185,1727862981982,-3036.95,0.00039625,30]
[339683186,1727862982006,-4658.55,0.00039631,30]
[339683187,1727862982029,-5000.0,0.00039643,30]
[339683188,1727862982052,-500.0,0.00039671,120]
[339683189,1727862982076,-5000.0,0.00039674,30]
[339683190,1727862982099,-411.0,0.00039696,90]
[339683191,1727862982127,-2716.3060711,0.000397,60]
[339683192,1727862982152,-5000.0,0.00039708,30]
[339683193,1727862982181,-5000.0,0.0003973,30]
[339683194,1727862982206,-500.0,0.00039753,120]
[339683195,1727862982230,-725258.53982694,0.0003978,60]
[339683196,1727862982254,-411.0,0.00039786,90]
[339683197,1727862982278,-5000.0,0.0003979,30]
[339683198,1727862982301,-215.0,0.0003979,30]
[339683199,1727862982325,-202.0,0.0003979,30]
[339683200,1727862982349,-204.0,0.0003979,30]
[339683201,1727862982372,-208.0,0.0003979,30]
[339683202,1727862982396,-207.0,0.0003979,30]
[339683203,1727862982422,-76352.46811146,0.000398,60]
[339683204,1727862982446,-14382.28,0.000398,60]
[339683205,1727862982472,-1196.36041,0.00039808,30]
[339683206,1727862982498,-4994.62,0.00039818,30]
[339683207,1727862982521,-5000.0,0.00039827,30]
[339683208,1727862982545,-389.722225,0.00039835,120]
[339683209,1727862982567,-38794.3161613,0.0003988,30]
[339683210,1727862982591,-100124.6,0.0003989,30]
[339683211,1727862982615,-1951.83998595,0.000399,120]
[339683212,1727862982638,-2502.28,0.000399,30]
[339683213,1727862982663,-396.53859937,0.000399,120]
[339683214,1727862982690,-4778.30286273,0.000399,60]
[339683215,1727862982714,-468.28478061,0.000399,30]
[339683216,1727862982739,-150.0,0.00039938,120]
[339683217,1727862982762,-21646.48922312,0.0003996,30]
[339683218,1727862982785,-1447191.3261616,0.0003996,30]
[339683219,1727862986681,-1413754.407748,0.0003996,30]
[339683220,1727862986705,-500.0,0.00039984,120]
[339683221,1727862986729,-411.0,0.00039986,90]
[339683222,1727862986753,-10382.35297047,0.0003999,120]
[339683223,1727862986778,-200.0,0.00039999,30]
[339683224,1727862986803,-1000.0,0.00039999,120]
[339683225,1727862986828,-413.38737577,0.00039999,31]
[339683226,1727862986854,-500.0,0.00039999,31]
[339683227,1727862986878,-432.12340751,0.00039999,31]
[339683228,1727862986902,-500.0,0.00039999,31]
[339683229,1727862986931,-500.0,0.00039999,31]
[339683230,1727862986956,-500.0,0.00039999,31]
[339683231,1727862986981,-500.0,0.00039999,31]
[339683232,1727862987005,-259.91850046,0.00039999,31]
[339683233,1727862987030,-500.0,0.00039999,31]
[339683234,1727862987056,-500.0,0.00039999,31]
[339683235,1727862987080,-500.0,0.00039999,31]
[339683236,1727862987104,-500.0,0.00039999,31]
[339683237,1727862987131,-500.0,0.00039999,31]
[339683238,1727862987158,-50000.0,0.0004,30]
[339683239,1727862987189,-50000.0,0.0004,40]
[339683240,1727862987214,-825.14369598,0.0004,120]
[339683241,1727862987239,-200.0,0.0004,120]
[339683242,1727862987262,-1000000.0,0.0004,120]
[339683243,1727862987287,-1000000.0,0.0004,120]
[339683244,1727862987311,-466621.66630181,0.0004,120]
[339683250,1727863832157,-180.15,0.00010959,2]
[339683251,1727863832167,-163.73,0.00010959,2]
[339683252,1727863832177,-250.0,0.00011,2]
[339683253,1727863832186,-1251.57574963,0.000123,2]
[339683254,1727863832196,-199.75277973,0.00013,2]
[339683255,1727863832207,-100.24722027,0.00013,2]
[339683256,1727863832216,-311.44,0.000145,2]
[339683257,1727863832226,-802.3867973,0.000145,2]
[339683258,1727863832328,-197.8132027,0.000145,2]
[339683259,1727863832340,-300.0,0.00014999,2]
[339683260,1727863832349,-350.0,0.00015,2]
[339683261,1727863832358,-200.0,0.00015,2]
[339683262,1727863832367,-200.0,0.00015,2]
[339683263,1727863832376,-200.0,0.00015,2]
[339683264,1727863832386,-200.0,0.00015,2]
[339683265,1727863832395,-141.72861691,0.00015,2]
[339683266,1727863832406,-58.27138309,0.00015,2]
[339683267,1727863832417,-200.0,0.00015,2]
[339683268,1727863832427,-200.0,0.00015,2]
[339683269,1727863832436,-200.0,0.00015,2]
[339683270,1727863832446,-200.0,0.00015,2]
[339683271,1727863832456,-200.0,0.00015,2]
[339683273,1727863832465,-200.0,0.00015,2]
[339683275,1727863832475,-200.0,0.00015,2]
[339683276,1727863832484,-200.0,0.00015,2]
[339683277,1727863832493,-200.0,0.00015,2]
[339683278,1727863832502,-200.0,0.00015,2]
[339683279,1727863832511,-200.0,0.00015,2]
[339683280,1727863832520,-200.0,0.00015,2]
[339683281,1727863832529,-200.0,0.00015,2]
[339683282,1727863832539,-200.0,0.00015,2]
[339683283,1727863832548,-200.0,0.00015,2]
[339683284,1727863832557,-200.0,0.00015,2]
[339683285,1727863832566,-200.0,0.00015,2]
[339683286,1727863832575,-200.0,0.00015,2]
[339683287,1727863832584,-200.0,0.00015,2]
[339683288,1727863832593,-200.0,0.00015,2]
[339683289,1727863832602,-200.0,0.00015,2]
[339683290,1727863832611,-693.0,0.00015,2]
[339683291,1727863832620,-200.0,0.000157,3]
[339683292,1727863832629,-1000.2,0.0001594,2]
[339683293,1727863832639,-311.44,0.00016065,2]
[339683294,1727863832649,-5879.3,0.00016116,2]
[339683295,1727863832657,-420.0,0.00016416,2]
[339683296,1727863832667,-3243.0,0.000166,2]
[339683297,1727863832680,-1028.0,0.000166,2]
[339683298,1727863832690,-200.0,0.000167,3]
[339683299,1727863832699,-195.10030948,0.00017,2]
[339683311,1727863838090,-204.89969052,0.00017,2]
[339683312,1727863838100,-1000.2,0.0001738,2]
[339683313,1727863838110,-443.018612,0.0001763,2]
[339683314,1727863838120,-200.0,0.000177,4]
[339683315,1727863838129,-890.81,0.00017728,2]
[339683316,1727863838140,-1112.44,0.00017728,2]
[339683317,1727863838149,-1180.38,0.00017728,2]
[339683318,1727863838159,-429.0,0.00017966,2]
[339683319,1727863838168,-200.0,0.000187,5]
[339683320,1727863838179,-250.0,0.00018754,2]
[339683321,1727863838189,-155.61,0.00018763,2]
[339683322,1727863838198,-1000.2,0.0001882,2]
[339683323,1727863838208,-255.0,0.0001882,2]
[339683324,1727863838218,-150.0,0.00018845,2]
[339683325,1727863838227,-250.0,0.00018902,2]
[339683326,1727863838237,-500.0,0.00018985,2]
[339683327,1727863838247,-450.0,0.00019,2]
[339683328,1727863838256,-200.0,0.00019035,2]
[339683329,1727863838266,-736.39,0.00019078,2]
[339683330,1727863838275,-1886.02,0.00019193,2]
[339683331,1727863838285,-2729.65,0.00019244,2]
[339683332,1727863838294,-150.0,0.00019348,2]
[339683333,1727863838303,-250.0,0.0001943,2]
[339683334,1727863838312,-1000.0,0.00019506,2]
[339683335,1727863838321,-655.17,0.00019669,2]
[339683336,1727863838330,-200.0,0.000197,6]
[339683337,1727863838343,-150.0,0.00019851,2]
[339683338,1727863838352,-170.51,0.00019952,2]
[339683339,1727863838361,-1180.38,0.00019992,2]
[339683340,1727863838371,-250.0,0.00020006,2]
[339683341,1727863838382,-200.18,0.000202,2]
[339683342,1727863838391,-1060.912555,0.0002026,2]
[339683343,1727863838402,-174.81,0.00020325,2]
[339683344,1727863838412,-150.0,0.00020355,2]
[339683345,1727863838423,-250.0,0.000205,2]
[339683346,1727863838432,-200.0,0.000207,7]
[339683347,1727863838442,-10000.0,0.00020767,2]
[339683348,1727863838452,-180.0,0.00020824,2]
[339683349,1727863838461,-150.0,0.00020858,2]
[339683351,1727863838471,-300.0,0.00020908,2]
[339683352,1727863838480,-4000.0,0.00020958,2]
[339683354,1727863838489,-237.82,0.00020968,2]
[339683355,1727863838499,-500.0,0.00021,2]
[339683356,1727863838509,-233.04,0.00021015,2]
[339683357,1727863838518,-174.12,0.0002112,2]
[339683358,1727863838527,-150.0,0.00021362,2]
[339683359,1727863838537,-167.01,0.00021381,2]
[339683360,1727863838547,-250.0,0.0002157,2]
[339683361,1727863838556,-200.0,0.000217,7]
[339683362,1727863838566,-237.82,0.0002171,2]
[339683363,1727863838575,-600.56,0.000218,7]
[339683364,1727863838584,-150.0,0.00021865,2]
[339683365,1727863838593,-152.29,0.000219,2]
[339683366,1727863838604,-1125.0,0.000219,2]
[339683367,1727863838613,-884.5,0.00021918,2]
[339683368,1727863838623,-852.38,0.00021918,2]
[339683369,1727863838632,-1000.0,0.00021944,2]
[339683370,1727863838642,-450.3104,0.00022082,10]
[339683371,1727863838652,-1311.76,0.000221,2]
[339683372,1727863838662,-810.714042,0.000221,2]
[339683373,1727863838671,-10515.54799876,0.000221,2]
[339683374,1727863838681,-2924.8678,0.000221,2]
[339683375,1727863838691,-26633.8387,0.000221,2]
[339683376,1727863838700,-288.0745,0.000221,2]
[339683377,1727863838711,-336.3384,0.000221,2]
[339683378,1727863838720,-1000.0,0.000221,2]
[339683379,1727863838730,-2500.0,0.000221,2]
[339683380,1727863838739,-22188.6891,0.0002212,2]
[339683381,1727863838749,-422.30975046,0.00022122,2]
[339683382,1727863838758,-655.17,0.00022127,2]
[339683383,1727863838768,-321131.96867384,0.000222,2]
[339683384,1727863838819,-26910.03956178,0.000222,2]
[339683385,1727863838829,-2000.0,0.000222,2]
[339683386,1727863838839,-200.0,0.000222,2]
[339683387,1727863838848,-500.0,0.000222,2]
[339683388,1727863838857,-500.0,0.000222,2]
[339683389,1727863838867,-500.0,0.000222,2]
[339683390,1727863838876,-500.0,0.000222,2]
[339683391,1727863838885,-500.0,0.000222,2]
[339683392,1727863838895,-500.0,0.000222,2]
[339683393,1727863838905,-500.0,0.000222,2]
[339683394,1727863838915,-500.0,0.000222,2]
[339683395,1727863838925,-500.0,0.000222,2]
[339683396,1727863838935,-500.0,0.000222,2]
[339683397,1727863839029,-500.0,0.000222,2]
[339683398,1727863839039,-500.0,0.000222,2]
[339683399,1727863839049,-500.0,0.000222,2]
[339683400,1727863839058,-500.0,0.000222,2]
[339683401,1727863839067,-500.0,0.000222,2]
[339683402,1727863839077,-500.0,0.000222,2]
[339683403,1727863839086,-500.0,0.000222,2]
[339683404,1727863839095,-500.0,0.000222,2]
[339683405,1727863839104,-500.0,0.000222,2]
[339683406,1727863839114,-500.0,0.000222,2]
[339683407,1727863839123,-500.0,0.000222,2]
[339683408,1727863839132,-500.0,0.000222,2]
[339683409,1727863839142,-500.0,0.000222,2]
[339683410,1727863839152,-500.0,0.000222,2]
[339683411,1727863839161,-500.0,0.000222,2]
[339683412,1727863839170,-500.0,0.000222,2]
[339683413,1727863839182,-500.0,0.000222,2]
[339683414,1727863839191,-500.0,0.000222,2]
[339683415,1727863839200,-500.0,0.000222,2]
[339683416,1727863839210,-500.0,0.000222,2]
[339683417,1727863839219,-500.0,0.000222,2]
[339683418,1727863839228,-500.0,0.000222,2]
[339683419,1727863839237,-500.0,0.000222,2]
[339683420,1727863839247,-500.0,0.000222,2]
[339683421,1727863839256,-500.0,0.000222,2]
[339683422,1727863839265,-500.0,0.000222,2]
[339683423,1727863839274,-500.0,0.000222,2]
[339683424,1727863839283,-500.0,0.000222,2]
[339683425,1727863839292,-500.0,0.000222,2]
[339683426,1727863839301,-500.0,0.000222,2]
[339683427,1727863839311,-500.0,0.000222,2]
[339683428,1727863839320,-500.0,0.000222,2]
[339683429,1727863839329,-500.0,0.000222,2]
[339683430,1727863839341,-500.0,0.000222,2]
[339683431,1727863839351,-500.0,0.000222,2]
[339683432,1727863839360,-500.0,0.000222,2]
[339683433,1727863839369,-500.0,0.000222,2]
[339683434,1727863839378,-500.0,0.000222,2]
[339683435,1727863839386,-500.0,0.000222,2]
[339683436,1727863839396,-500.0,0.000222,2]
[339683437,1727863839415,-500.0,0.000222,2]
[339683438,1727863839424,-500.0,0.000222,2]
[339683439,1727863839435,-500.0,0.000222,2]
[339683440,1727863839445,-500.0,0.000222,2]
[339683441,1727863839454,-500.0,0.000222,2]
[339683442,1727863839464,-500.0,0.000222,2]
[339683443,1727863839473,-500.0,0.000222,2]
[339683444,1727863839482,-500.0,0.000222,2]
[339683445,1727863839492,-500.0,0.000222,2]
[339683446,1727863839501,-500.0,0.000222,2]
[339683447,1727863839510,-500.0,0.000222,2]
[339683448,1727863839519,-500.0,0.000222,2]
[339683449,1727863839529,-500.0,0.000222,2]
[339683450,1727863839538,-500.0,0.000222,2]
[339683451,1727863839547,-500.0,0.000222,2]
[339683452,1727863839557,-500.0,0.000222,2]
[339683453,1727863839566,-500.0,0.000222,2]
[339683454,1727863839575,-500.0,0.000222,2]
[339683455,1727863839585,-500.0,0.000222,2]
[339683456,1727863839596,-500.0,0.000222,2]
[339683457,1727863839606,-500.0,0.000222,2]
[339683458,1727863839616,-500.0,0.000222,2]
[339683459,1727863839625,-500.0,0.000222,2]
[339683460,1727863839635,-500.0,0.000222,2]
[339683461,1727863839644,-500.0,0.000222,2]
[339683462,1727863839653,-500.0,0.000222,2]
[339683463,1727863839663,-500.0,0.000222,2]
[339683464,1727863839672,-500.0,0.000222,2]
[339683465,1727863839681,-500.0,0.000222,2]
[339683466,1727863839691,-500.0,0.000222,2]
[339683467,1727863839701,-500.0,0.000222,2]
[339683468,1727863839710,-500.0,0.000222,2]
[339683469,1727863839720,-500.0,0.000222,2]
[339683470,1727863839729,-500.0,0.000222,2]
[339683471,1727863839739,-500.0,0.000222,2]
[339683472,1727863839748,-500.0,0.000222,2]
[339683473,1727863839758,-500.0,0.000222,2]
[339683474,1727863839768,-10.71217669,0.000222,2]
[339683475,1727863839794,-489.28782331,0.000222,2]
[339683476,1727863839804,-500.0,0.000222,2]
[339683477,1727863839813,-500.0,0.000222,2]
[339683478,1727863839822,-500.0,0.000222,2]
[339683479,1727863839831,-500.0,0.000222,2]
[339683480,1727863839840,-500.0,0.000222,2]
[339683481,1727863839850,-500.0,0.000222,2]
[339683482,1727863839859,-500.0,0.000222,2]
[339683483,1727863839869,-500.0,0.000222,2]
[339683484,1727863839879,-500.0,0.000222,2]
[339683485,1727863839889,-156.01217426,0.000222,2]
[339683486,1727863839904,-343.98782574,0.000222,2]
[339683487,1727863839913,-103.3222624,0.000222,2]
[339683488,1727863839924,-396.6777376,0.000222,2]
[339683489,1727863839934,-500.0,0.000222,2]
[339683490,1727863839944,-500.0,0.000222,2]
[339683491,1727863839953,-500.0,0.000222,2]
[339683492,1727863839962,-500.0,0.000222,2]
[339683493,1727863839972,-500.0,0.000222,2]
[339683494,1727863839981,-500.0,0.000222,2]
[339683495,1727863839990,-500.0,0.000222,2]
[339683496,1727863840000,-500.0,0.000222,2]
[339683497,1727863840009,-500.0,0.000222,2]
[339683498,1727863840019,-500.0,0.000222,2]
[339683499,1727863840030,-500.0,0.000222,2]
[339683500,1727863840039,-500.0,0.000222,2]
[339683501,1727863840048,-500.0,0.000222,2]
[339683502,1727863840058,-500.0,0.000222,2]
[339683503,1727863840067,-500.0,0.000222,2]
[339683504,1727863840077,-500.0,0.000222,2]
[339683505,1727863840086,-500.0,0.000222,2]
[339683506,1727863840096,-500.0,0.000222,2]
[339683507,1727863840105,-500.0,0.000222,2]
[339683508,1727863840115,-500.0,0.000222,2]
[339683509,1727863840124,-500.0,0.000222,2]
[339683510,1727863840133,-500.0,0.000222,2]
[339683511,1727863840143,-500.0,0.000222,2]
[339683512,1727863840152,-500.0,0.000222,2]
[339683513,1727863840161,-500.0,0.000222,2]
[339683514,1727863840170,-500.0,0.000222,2]
[339683515,1727863840181,-500.0,0.000222,2]
[339683516,1727863840190,-500.0,0.000222,2]
[339683517,1727863840200,-500.0,0.000222,2]
[339683518,1727863840209,-500.0,0.000222,2]
[339683519,1727863840218,-500.0,0.000222,2]
[339683520,1727863840227,-500.0,0.000222,2]
[339683521,1727863840236,-500.0,0.000222,2]
[339683522,1727863840245,-500.0,0.000222,2]
[339683523,1727863840254,-500.0,0.000222,2]
[339683524,1727863840263,-500.0,0.000222,2]
[339683525,1727863840272,-500.0,0.000222,2]
[339683526,1727863840281,-500.0,0.000222,2]
[339683527,1727863840291,-500.0,0.000222,2]
[339683528,1727863840300,-500.0,0.000222,2]
[339683529,1727863840309,-500.0,0.000222,2]
[339683530,1727863840318,-500.0,0.000222,2]
[339683531,1727863840327,-500.0,0.000222,2]